fUSD/lending_fUSD_20241104
["ID","MTS","AMOUNT","RATE_DAILY","PERIOD"]
[341225772,1730698239379,-500.0,0.00037243,2]
[341225773,1730698239388,-500.0,0.00037243,2]
[341225774,1730698239397,-500.0,0.00037243,2]
[341225775,1730698239406,-500.0,0.00037243,2]
[341225776,1730698239415,-500.0,0.00037243,2]
[341225777,1730698239424,-500.0,0.00037243,2]
[341225778,1730698239433,-500.0,0.00037243,2]
[341225779,1730698239442,-500.0,0.00037243,2]
[341225780,1730698239451,-500.0,0.00037243,2]
[341225781,1730698239460,-902.34,0.00037243,2]
[341225782,1730698239469,-500.0,0.00037243,2]
[341225783,1730698239479,-500.0,0.00037243,2]
[341225784,1730698239489,-500.0,0.00037243,2]
[341225785,1730698239498,-500.0,0.00037243,2]
[341225786,1730698239507,-294.68426931,0.00037243,2]
[341225787,1730698239518,-500.0,0.00037243,2]
[341225788,1730698239527,-500.0,0.00037243,2]
[341225789,1730698239536,-500.0,0.00037243,2]
[341225790,1730698239545,-500.0,0.00037243,2]
[341225791,1730698239554,-500.0,0.00037243,2]
[341225792,1730698239563,-500.0,0.00037243,2]
[341225793,1730698239572,-384.91942708,0.00037243,2]
[341225794,1730698239581,-500.0,0.00037243,2]
[341225795,1730698239594,-500.0,0.00037243,2]
[341225796,1730698239606,-500.0,0.00037243,2]
[341225797,1730698239615,-500.0,0.00037243,2]
[341225798,1730698239624,-200.41219233,0.00037243,2]
[341225799,1730698239634,-500.0,0.00037243,2]
[341225800,1730698239642,-788.12,0.00037243,2]
[341225801,1730698239652,-500.0,0.00037243,2]
[341225802,1730698239662,-178.487,0.0003725,2]
[341225803,1730698239671,-150.0,0.0003726,2]
[341225804,1730698239680,-150.0,0.0003728,2]
[341225805,1730698239689,-150.0,0.00037335,2]
[341225806,1730698239698,-150.0,0.00037338,2]
[341225807,1730698239707,-213.76623844,0.00037344,2]
[341225808,1730698239716,-263.07685494,0.00037344,2]
[341225809,1730698239725,-500.0,0.00037344,2]
[341225810,1730698239734,-500.0,0.00037344,2]
[341225811,1730698239743,-436.6704224,0.00037344,2]
[341225812,1730698239752,-163.40077927,0.00037344,2]
[341225813,1730698239763,-500.0,0.00037344,2]
[341225814,1730698239772,-500.0,0.00037344,2]
[341225815,1730698239781,-500.0,0.00037344,2]
[341225816,1730698239790,-500.0,0.00037344,2]
[341225817,1730698239802,-237.0,0.00037344,2]
[341225818,1730698239812,-500.0,0.00037344,2]
[341225819,1730698239824,-500.0,0.00037344,2]
[341225820,1730698239834,-500.0,0.00037344,2]
[341225821,1730698239843,-500.0,0.00037344,2]
[341225822,1730698239852,-500.0,0.00037344,2]
[341225823,1730698239861,-500.0,0.00037344,2]
[341225824,1730698239871,-500.0,0.00037344,2]
[341225825,1730698239880,-500.0,0.00037344,2]
[341225826,1730698239890,-500.0,0.00037344,2]
[341225827,1730698239899,-510.31310343,0.00037344,2]
[341225828,1730698239908,-500.0,0.00037344,2]
[341225829,1730698239918,-519.18223851,0.00037344,2]
[341225830,1730698239927,-500.0,0.00037344,2]
[341225831,1730698239937,-506.54930603,0.00037344,2]
[341225832,1730698239947,-500.0,0.00037344,2]
[341225833,1730698239957,-500.0,0.00037344,2]
[341225834,1730698239966,-500.0,0.00037344,2]
[341225835,1730698239976,-500.0,0.00037344,2]
[341225836,1730698239985,-500.0,0.00037344,2]
[341225837,1730698239995,-500.0,0.00037344,2]
[341225838,1730698240005,-500.0,0.00037344,2]
[341225839,1730698240016,-500.0,0.00037344,2]
[341225840,1730698240026,-500.0,0.00037344,2]
[341225841,1730698240036,-500.0,0.00037344,2]
[341225842,1730698240045,-500.0,0.00037344,2]
[341225843,1730698240055,-500.0,0.00037344,2]
[341225844,1730698240064,-500.0,0.00037344,2]
[341225845,1730698240075,-500.0,0.00037344,2]
[341225846,1730698240084,-522.03340327,0.00037344,2]
[341225847,1730698240094,-500.0,0.00037344,2]
[341225848,1730698240103,-500.0,0.00037344,2]
[341225849,1730698240113,-500.0,0.00037344,2]
[341225850,1730698240122,-500.0,0.00037344,2]
[341225851,1730698240132,-500.0,0.00037344,2]
[341225852,1730698240141,-500.0,0.00037344,2]
[341225853,1730698240151,-500.0,0.00037344,2]
[341225854,1730698240160,-500.0,0.00037344,2]
[341225855,1730698240169,-500.0,0.00037344,2]
[341225856,1730698240179,-500.0,0.00037344,2]
[341225857,1730698240189,-500.0,0.00037344,2]
[341225858,1730698240198,-500.0,0.00037344,2]
[341225859,1730698240209,-500.0,0.00037344,2]
[341225860,1730698240219,-500.0,0.00037344,2]
[341225861,1730698240229,-500.0,0.00037344,2]
[341225863,1730698240238,-500.0,0.00037344,2]
[341225864,1730698240248,-500.0,0.00037344,2]
[341225865,1730698240260,-500.0,0.00037344,2]
[341225866,1730698240270,-500.0,0.00037344,2]
[341225867,1730698240279,-500.0,0.00037344,2]
[341225868,1730698240289,-500.0,0.00037344,2]
[341225869,1730698240299,-500.0,0.00037344,2]
[341225870,1730698240309,-500.0,0.00037344,2]
[341225871,1730698240318,-500.0,0.00037344,2]
[341225872,1730698240328,-500.0,0.00037344,2]
[341225873,1730698240338,-503.32094129,0.00037345,2]
[341225874,1730698240348,-150.0,0.00037388,2]
[341225875,1730698240357,-150.0,0.00037403,2]
[341225876,1730698240366,-150.0,0.00037411,2]
[341225877,1730698240376,-150.0,0.00037438,2]
[341225878,1730698240386,-481.80187169,0.00037447,2]
[341225879,1730698240395,-150.0,0.00037456,2]
[341225880,1730698240405,-714.75,0.00037481,2]
[341225881,1730698240414,-500.0,0.00037516,2]
[341225882,1730698240424,-500.0,0.00037516,2]
[341225883,1730698240433,-500.0,0.00037516,2]
[341225884,1730698240443,-574.95313148,0.00037516,2]
[341225885,1730698240453,-500.0,0.00037516,2]
[341225886,1730698240463,-640.79,0.00037516,2]
[341225887,1730698240473,-549.78536926,0.00037516,2]
[341225888,1730698240484,-500.0,0.00037516,2]
[341225889,1730698240493,-500.0,0.00037516,2]
[341225890,1730698240503,-500.0,0.00037516,2]
[341225891,1730698240515,-256.428684,0.00037516,2]
[341225892,1730698240524,-500.0,0.00037516,2]
[341225893,1730698240534,-500.0,0.00037516,2]
[341225894,1730698240545,-500.0,0.00037516,2]
[341225895,1730698240554,-500.0,0.00037516,2]
[341225896,1730698240564,-500.0,0.00037516,2]
[341225897,1730698240574,-500.0,0.00037516,2]
[341225898,1730698240584,-392.24308478,0.00037516,2]
[341225899,1730698240597,-520.85132467,0.00037516,2]
[341225900,1730698240607,-200.05726024,0.00037516,2]
[341225901,1730698240617,-500.0,0.00037516,2]
[341225902,1730698240626,-500.0,0.00037516,2]
[341225903,1730698240637,-2000.0,0.00037516,60]
[341225904,1730698240647,-500.0,0.00037516,2]
[341225905,1730698240657,-500.0,0.00037516,2]
[341225906,1730698240669,-572.1742621,0.00037516,2]
[341225907,1730698240679,-500.0,0.00037516,2]
[341225908,1730698240688,-500.0,0.00037516,2]
[341225909,1730698240698,-500.0,0.00037516,2]
[341225910,1730698240707,-500.0,0.00037516,2]
[341225911,1730698240719,-540.69192028,0.00037516,2]
[341225912,1730698240728,-523.98906276,0.00037516,2]
[341225913,1730698240739,-500.0,0.00037516,2]
[341225914,1730698240749,-500.0,0.00037516,2]
[341225915,1730698240761,-500.0,0.00037516,2]
[341225916,1730698240771,-500.0,0.00037516,2]
[341225917,1730698240781,-500.0,0.00037516,2]
[341225918,1730698240790,-500.0,0.00037516,2]
[341225919,1730698240800,-500.0,0.00037516,2]
[341225920,1730698240811,-500.0,0.00037516,2]
[341225921,1730698240823,-500.0,0.00037516,2]
[341225922,1730698240833,-500.0,0.00037516,2]
[341225923,1730698240844,-500.0,0.00037516,2]
[341225924,1730698240853,-7178.05,0.00037516,2]
[341225925,1730698240863,-500.0,0.00037516,2]
[341225926,1730698240872,-500.0,0.00037516,2]
[341225927,1730698240882,-500.0,0.00037516,2]
[341225928,1730698240891,-902.34,0.00037516,2]
[341225929,1730698240901,-500.0,0.00037516,2]
[341225930,1730698240911,-500.0,0.00037516,2]
[341225931,1730698240921,-500.0,0.00037516,2]
[341225932,1730698240930,-618.47570922,0.00037516,2]
[341225933,1730698240940,-500.0,0.00037516,2]
[341225934,1730698240950,-500.0,0.00037516,2]
[341225935,1730698240960,-500.0,0.00037516,2]
[341225936,1730698240969,-623.92244925,0.00037516,2]
[341225937,1730698240978,-578.61724131,0.00037516,2]
[341225938,1730698240988,-500.0,0.00037516,2]
[341225939,1730698240997,-601.22794844,0.00037516,2]
[341225940,1730698241007,-529.42059637,0.00037516,2]
[341225941,1730698241018,-601.97770644,0.00037516,2]
[341225942,1730698241028,-500.0,0.00037516,2]
[341225943,1730698241038,-894.97,0.00037516,2]
[341225944,1730698241047,-500.0,0.00037516,2]
[341225945,1730698241057,-500.0,0.00037516,2]
[341225946,1730698241067,-437.67586698,0.00037516,2]
[341225947,1730698241077,-640.61271276,0.00037516,2]
[341225948,1730698241086,-500.0,0.00037516,2]
[341225949,1730698241096,-500.0,0.00037516,2]
[341225950,1730698241106,-500.0,0.00037516,2]
[341225951,1730698241116,-500.0,0.00037516,2]
[341225952,1730698241125,-788.12,0.00037516,2]
[341225953,1730698241135,-500.0,0.00037516,2]
[341225954,1730698241145,-500.0,0.00037525,2]
[341225955,1730698241154,-150.0,0.00037528,2]
[341225956,1730698241164,-150.0,0.00037531,2]
[341225957,1730698241173,-150.0,0.00037545,2]
[341225958,1730698241182,-493.0,0.00037574,2]
[341225959,1730698241192,-150.0,0.00037574,2]
[341225960,1730698241201,-500.0,0.00037574,2]
[341225961,1730698241211,-150.0,0.0003758,2]
[341225962,1730698241221,-225.0,0.000376,15]
[341225963,1730698241230,-2000.0,0.000376,2]
[341225964,1730698241240,-2000.0,0.000376,2]
[341225965,1730698241249,-506.47406679,0.00037618,2]
[341225966,1730698241258,-500.0,0.00037618,2]
[341225967,1730698241268,-500.0,0.00037618,2]
[341225968,1730698241277,-500.0,0.00037618,2]
[341225969,1730698241286,-500.0,0.00037618,2]
[341225970,1730698241297,-500.0,0.00037618,2]
[341225971,1730698241308,-517.51713233,0.00037618,2]
[341225972,1730698241318,-595.97866227,0.00037618,2]
[341225973,1730698241328,-500.0,0.00037618,2]
[341225974,1730698241338,-500.0,0.00037618,2]
[341225975,1730698241348,-505.9008575,0.00037618,2]
[341225976,1730698241357,-516.3511523,0.00037618,2]
[341225977,1730698241366,-511.66205734,0.00037618,2]
[341225978,1730698241378,-343.22126279,0.00037618,2]
[341225979,1730698241387,-519.52250876,0.00037618,2]
[341225980,1730698241397,-519.82901858,0.00037618,2]
[341225981,1730698241408,-510.13590889,0.00037618,2]
[341225982,1730698241418,-508.0278031,0.00037618,2]
[341225983,1730698241429,-507.77859456,0.00037618,2]
[341225984,1730698241440,-509.07302824,0.00037618,2]
[341225985,1730698241450,-517.67282978,0.00037618,2]
[341225986,1730698241461,-508.26034171,0.00037618,2]
[341225987,1730698241470,-513.17587562,0.00037618,2]
[341225988,1730698241480,-510.93379199,0.00037618,2]
[341225989,1730698241490,-514.57598271,0.00037618,2]
[341225990,1730698241500,-511.66206349,0.00037618,2]
[341225991,1730698241510,-525.57391996,0.00037618,2]
[341225992,1730698241519,-516.45963542,0.00037618,2]
[341225993,1730698241529,-519.27402197,0.00037618,2]
[341225994,1730698241539,-508.40880873,0.00037618,2]
[341225995,1730698241549,-506.44847187,0.00037618,2]
[341225996,1730698241559,-502.17104661,0.00037618,2]
[341225997,1730698241569,-521.3578366,0.00037618,2]
[341225998,1730698241579,-534.96049331,0.00037618,2]
[341225999,1730698241591,-533.26264247,0.00037618,2]
[341226000,1730698241600,-517.27355339,0.00037618,2]
[341226001,1730698241610,-500.0,0.00037618,2]
[341226002,1730698241621,-500.0,0.00037618,2]
[341226003,1730698241631,-500.0,0.00037618,2]
[341226004,1730698241641,-500.0,0.00037618,2]
[341226005,1730698241651,-500.0,0.00037618,2]
[341226006,1730698241660,-500.0,0.00037618,2]
[341226007,1730698241670,-515.56622305,0.00037618,2]
[341226008,1730698241680,-500.0,0.00037618,2]
[341226009,1730698241690,-500.0,0.00037618,2]
[341226010,1730698241700,-500.0,0.00037618,2]
[341226011,1730698241710,-500.0,0.00037618,2]
[341226012,1730698241720,-504.24762059,0.00037618,2]
[341226013,1730698241730,-500.0,0.00037618,2]
[341226014,1730698241741,-500.0,0.00037618,2]
[341226015,1730698241750,-500.0,0.00037618,2]
[341226016,1730698241760,-511.61554191,0.00037618,2]
[341226017,1730698241770,-500.0,0.00037618,2]
[341226018,1730698241779,-500.0,0.00037618,2]
[341226019,1730698241790,-500.0,0.00037618,2]
[341226020,1730698241800,-432.22744663,0.0003767,2]
[341226021,1730698241810,-500.89040859,0.00037673,5]
[341226022,1730698241820,-163.23701327,0.00037673,5]
[341226023,1730698241829,-500.0,0.00037673,5]
[341226024,1730698241839,-150.0,0.00037675,2]
[341226025,1730698241849,-500.0,0.00037679,2]
[341226026,1730698241859,-500.0,0.00037679,2]
[341226027,1730698241869,-500.0,0.00037679,2]
[341226028,1730698241878,-213771.73871909,0.0003768,2]
[341226029,1730698242348,-151.0,0.00036694,7]
[341226030,1730698242358,-151.0,0.00036695,7]
[341226031,1730698242368,-151.0,0.00036695,7]
[341226032,1730698242377,-215.235384,0.00036695,7]
[341226033,1730698242386,-335.104616,0.00037516,2]
[341226034,1730698242402,-164.895384,0.00037516,2]
[341226035,1730698242411,-161.49759445,0.0003768,2]
[341226036,1730698242422,-2896.58360006,0.0003768,2]
[341226037,1730698242433,-363.00100962,0.0003768,2]
[341226044,1730698246219,-151.0,0.00035872,7]
[341226045,1730698246229,-151.0,0.00035872,7]
[341226046,1730698246239,-151.0,0.00036445,7]
[341226047,1730698246249,-151.0,0.00036445,7]
[341226048,1730698246258,-92.11,0.00036595,7]
[341226052,1730698719608,151.8,0.000237,120]
[341226053,1730699119162,286.12,0.00015342,2]
[341226208,1730699431945,-150.0,0.00018107,2]
[341226210,1730699431955,-173.62787862,0.00021384,2]
[341226212,1730699431964,-182.51870614,0.00023401,2]
[341226215,1730699432167,-2704.11559046,0.00023401,2]
[341226216,1730699432281,-5873.62174506,0.00023401,2]
[341226217,1730699432292,-213.14973796,0.0003,2]
[341226218,1730699432304,-420.98804803,0.0003,2]
[341226219,1730699432339,-3392.23351626,0.0003,2]
[341226220,1730699432348,-49.73993767,0.00034059,2]
[341226223,1730699437958,-603.04006233,0.00034059,2]
[341226224,1730699437967,-1016.95993767,0.000351,2]
[341226225,1730699438069,-3337.46909878,0.000351,2]
[341226226,1730699438441,-196.82096355,0.000351,2]
[341226227,1730699438450,-181.61,0.000351,17]
[341226228,1730699438459,-286.85,0.00035101,120]
[341226229,1730699438469,-250.0,0.00035147,2]
[341226230,1730699438478,-150.0,0.00035568,7]
[341226231,1730699438487,-2132.26903645,0.00035664,2]
[341226233,1730699438528,-1999.64766,0.00035664,2]
[341226244,1730699443348,-419.33330355,0.00035664,2]
[341226245,1730699443358,-337.18,0.00035747,2]
[341226246,1730699443367,-171.55,0.00035748,2]
[341226247,1730699443376,-250.0,0.00035771,2]
[341226248,1730699443385,-232.03,0.00035799,2]
[341226249,1730699443394,-3436.33259644,0.0003584,2]
[341226252,1730699443462,-625.42636932,0.0003584,2]
[341226253,1730699446032,-680.49766876,0.0003584,2]
[341226254,1730699446090,-368.21475358,0.0003584,2]
[341226255,1730699446149,-1280.81103182,0.0003584,2]
[341226256,1730699446162,-360.08234564,0.0003584,2]
[341226257,1730699446206,-1426.69041782,0.0003584,2]
[341226258,1730699446268,-1339.58,0.0003584,2]
[341226259,1730699446321,-3836.184991,0.0003584,2]
[341226260,1730699446379,-10536.17982562,0.0003584,2]
[341226261,1730699446390,-1000.0,0.00035879,2]
[341226262,1730699446401,-207.36,0.00036126,2]
[341226263,1730699446412,-4551.25,0.00036228,2]
[341226264,1730699446426,-153.344,0.00036273,44]
[341226265,1730699446440,-652.78,0.00036323,2]
[341226266,1730699446452,-558.0,0.00036527,2]
[341226267,1730699446462,-844.2997,0.00036595,2]
[341226268,1730699446472,-50.52918537,0.00036694,2]
[341226275,1730700041062,150.0,0.00016001,2]
[341226276,1730700092539,163.37,0.00015342,2]
[341226311,1730700603089,162.34214351,0.00015342,2]
[341226322,1730700632175,-250.0,0.00021,2]
[341226323,1730700632185,-1280.8634175,0.000219,2]
[341226324,1730700632195,-54.09749374,0.00022,2]
[341226325,1730700632206,-942.24,0.00022,2]
[341226326,1730700632290,-410.66250626,0.00022,2]
[341226327,1730700632299,-300.0,0.00023,2]
[341226328,1730700632308,-256.86604655,0.00025,2]
[341226329,1730700632320,-93.13395345,0.00025,2]
[341226330,1730700632330,-400.0,0.00027,2]
[341226331,1730700632339,-450.0,0.00029,2]
[341226332,1730700632349,-200.0,0.000296,2]
[341226333,1730700632359,-500.0,0.00031,2]
[341226334,1730700632368,-628.21,0.00032768,2]
[341226335,1730700632377,-256.40604655,0.000337,2]
[341226336,1730700632388,-43.59395345,0.000337,2]
[341226337,1730700632398,-2290.86203992,0.00033795,2]
[341226338,1730700632412,-412.48640893,0.00033795,2]
[341226339,1730700632427,-523.13155115,0.00033795,2]
[341226340,1730700632436,-38.62775709,0.00034338,2]
[341226341,1730700632479,-500.0,0.00034338,2]
[341226346,1730700638417,-2065.19040398,0.00034338,2]
[341226349,1730700640146,-622.66183893,0.00034338,2]
[341226350,1730700640155,-150.0,0.00034348,7]
[341226351,1730700640164,-165.88,0.00034402,2]
[341226352,1730700640173,-1905.45816107,0.00034548,2]
[341226353,1730700640205,-1535.32183893,0.00034548,2]
[341226354,1730700640214,-232.03,0.00034576,2]
[341226355,1730700640223,-2913.86045778,0.00034881,2]
[341226356,1730700640373,-312.61954222,0.00034881,2]
[341226357,1730700640382,-800.0,0.00034911,2]
[341226358,1730700640392,-628.21,0.00035032,2]
[341226359,1730700640401,-3226.48,0.00035424,2]
[341226360,1730700640410,-250.0,0.00035959,2]
[341226361,1730700640419,-1802.72206236,0.00035967,2]
[341226374,1730700644482,-1423.75793764,0.00035967,2]
[341226375,1730700644496,-165.88,0.00036122,2]
[341226376,1730700644513,-200.0,0.00036327,2]
[341226377,1730700644522,-282.612,0.00036436,45]
[341226378,1730700644531,-3226.48,0.0003651,2]
[341226379,1730700644541,-500.0,0.00036692,2]
[341226380,1730700644561,-166.62,0.00036804,2]
[341226381,1730700644572,-8321.2333,0.00036898,2]
[341226382,1730700644581,-898.4111,0.00036898,2]
[341226383,1730700644591,-251.1128,0.00036898,2]
[341226384,1730700644601,-716.0973939,0.00036899,15]
[341226385,1730700644612,-891.64676268,0.00036899,3]
[341226386,1730700644623,-6710.11554241,0.00036899,3]
[341226390,1730700646517,-1522.39828007,0.00036899,3]
[341226440,1730700695625,165.725,0.000237,120]
[341226441,1730700719055,158.1,0.00015342,2]
[341226442,1730700967417,150.0,0.000153,2]
[341226443,1730701319605,157.71,0.00015342,2]
[341226444,1730701508133,1199842.29,0.00016,2]
[341226445,1730701508156,15603.52269242,0.00016,2]
[341226471,1730701681119,1615.50992355,0.000145,3]
[341226472,1730701711143,665.97489353,0.00015235,2]
[341226493,1730701832346,-300.0,0.00017299,2]
[341226495,1730701832355,-510.95563597,0.000173,3]
[341226496,1730701832366,-470.59679604,0.000173,3]
[341226497,1730701832382,-846.47,0.000173,3]
[341226498,1730701832393,-350.2299999,0.000173,3]
[341226499,1730701832429,-1999.71839229,0.000173,3]
[341226500,1730701832662,-5016.3540388,0.000173,3]
[341226501,1730701832671,-420.0,0.00018889,2]
[341226502,1730701832680,-587.0,0.00020624,2]
[341226503,1730701832689,-375.0,0.00022,2]
[341226504,1730701832700,-823.0,0.00022519,2]
[341226505,1730701832708,-340.0,0.00024589,2]
[341226506,1730701832717,-476.45980243,0.00025,2]
[341226507,1730701832727,-714.71,0.00027761,2]
[341226508,1730701832736,-200.0,0.000296,2]
[341226509,1730701832747,-778.28,0.00032487,2]
[341226510,1730701832756,-1101.57,0.00032487,2]
[341226511,1730701832765,-213.52634003,0.000328,2]
[341226512,1730701832774,-806.62,0.00033195,2]
[341226513,1730701832784,-197.72,0.0003339,2]
[341226514,1730701832793,-223.98,0.00033418,2]
[341226515,1730701832802,-200.0,0.00033418,2]
[341226516,1730701832812,-185.97,0.00033608,2]
[341226517,1730701832822,-1000.0,0.00033618,2]
[341226518,1730701832831,-300.0,0.000337,2]
[341226519,1730701832841,-806.62,0.00033729,2]
[341226520,1730701832852,-756.22,0.00033748,2]
[341226521,1730701832861,-250.0,0.00033796,2]
[341226522,1730701832870,-180.82,0.00033872,2]
[341226523,1730701832879,-23890.0,0.00034157,2]
[341226524,1730701832888,-282.76,0.00034218,2]
[341226525,1730701832897,-5579.5,0.00034245,2]
[341226526,1730701832906,-154.98,0.00034261,2]
[341226527,1730701832917,-806.62,0.00034262,2]
[341226528,1730701832927,-150.0,0.00034365,2]
[341226529,1730701832938,-150.0,0.00034367,7]
[341226530,1730701832947,-152.78,0.0003446,2]
[341226531,1730701832957,-778.28,0.00034751,2]
[341226532,1730701832966,-179.3,0.00034775,2]
[341226533,1730701832975,-806.62,0.00034795,2]
[341226534,1730701832984,-250.0,0.00035,2]
[341226535,1730701832994,-806.62,0.00035329,2]
[341226536,1730701833004,-806.62,0.00035862,2]
[341226537,1730701833013,-644.48765451,0.00035863,15]
[341226538,1730701833022,-536.9283,0.00035863,2]
[341226539,1730701833031,-2662.5442,0.00035863,2]
[341226540,1730701833041,-488.735,0.00035939,2]
[341226541,1730701833050,-1002.33664329,0.00035963,2]
[341226542,1730701833059,-3398.9,0.00035963,2]
[341226543,1730701833069,-154.98,0.00035974,2]
[341226544,1730701833078,-500.0,0.00035981,2]
[341226545,1730701833087,-500.0,0.00035981,2]
[341226546,1730701833097,-571.52766156,0.00035981,2]
[341226547,1730701833106,-599.77678721,0.00035981,2]
[341226548,1730701833115,-500.0,0.00035981,2]
[341226549,1730701833124,-500.0,0.00035981,2]
[341226550,1730701833134,-500.0,0.00035981,2]
[341226551,1730701833143,-500.0,0.00035981,2]
[341226552,1730701833152,-500.0,0.00035981,2]
[341226553,1730701833161,-500.0,0.00035981,2]
[341226554,1730701833170,-500.0,0.00035981,2]
[341226555,1730701833179,-280.84996391,0.00035981,2]
[341226556,1730701833188,-500.0,0.00035981,2]
[341226557,1730701833198,-902.34,0.00035981,2]
[341226558,1730701833206,-520.7982468,0.00035981,2]
[341226559,1730701833215,-500.0,0.00035981,2]
[341226560,1730701833224,-500.0,0.00035981,2]
[341226561,1730701833233,-500.0,0.00035981,2]
[341226562,1730701833243,-500.0,0.00035981,2]
[341226563,1730701833251,-500.0,0.00035981,2]
[341226564,1730701833260,-500.0,0.00035981,2]
[341226565,1730701833269,-500.0,0.00035981,2]
[341226566,1730701833278,-647.63447696,0.00035981,2]
[341226567,1730701833288,-500.0,0.00035981,2]
[341226568,1730701833297,-500.0,0.00035981,2]
[341226569,1730701833306,-500.0,0.00035981,2]
[341226570,1730701833315,-500.0,0.00035981,2]
[341226571,1730701833324,-500.0,0.00035981,2]
[341226572,1730701833333,-788.12,0.00035981,2]
[341226573,1730701833341,-522.70377034,0.00035981,2]
[341226574,1730701833351,-153.54925931,0.00035981,15]
[341226575,1730701833359,-3398.9,0.00035982,2]
[341226576,1730701833369,-419.1,0.0003599,10]
[341226577,1730701833378,-1928.0,0.00036,2]
[341226578,1730701833388,-2854.6874012,0.00036,120]
[341226579,1730701833396,-135798.88169646,0.00036,120]
[341226580,1730701833405,-3398.9,0.00036001,2]
[341226581,1730701833415,-3398.9,0.0003602,2]
[341226582,1730701833424,-279.7947,0.00036033,2]
[341226583,1730701833433,-500.0,0.00036038,2]
[341226584,1730701833442,-500.0,0.00036038,2]
[341226585,1730701833451,-562.05733493,0.00036038,2]
[341226586,1730701833460,-7178.05,0.00036038,2]
[341226587,1730701833470,-500.0,0.00036038,2]
[341226588,1730701833479,-3398.9,0.00036039,2]
[341226589,1730701833487,-172.81,0.00036039,2]
[341226590,1730701833497,-3398.9,0.00036058,2]
[341226591,1730701833507,-531.42006975,0.00036076,2]
[341226592,1730701833516,-500.0,0.00036076,2]
[341226593,1730701833525,-500.0,0.00036076,2]
[341226594,1730701833534,-500.0,0.00036076,2]
[341226595,1730701833544,-500.0,0.00036076,2]
[341226596,1730701833553,-500.0,0.00036076,2]
[341226597,1730701833562,-500.0,0.00036076,2]
[341226598,1730701833571,-500.0,0.00036076,2]
[341226599,1730701833581,-500.0,0.00036076,2]
[341226600,1730701833592,-500.0,0.00036076,2]
[341226601,1730701833602,-500.0,0.00036076,2]
[341226602,1730701833611,-500.0,0.00036076,2]
[341226603,1730701833620,-575.48608717,0.00036076,2]
[341226604,1730701833629,-500.0,0.00036076,2]
[341226605,1730701833639,-500.0,0.00036076,2]
[341226606,1730701833648,-500.0,0.00036076,2]
[341226607,1730701833658,-500.0,0.00036076,2]
[341226608,1730701833669,-500.0,0.00036076,2]
[341226609,1730701833678,-500.0,0.00036076,2]
[341226610,1730701833687,-500.0,0.00036076,2]
[341226611,1730701833697,-500.0,0.00036076,2]
[341226612,1730701833706,-500.0,0.00036076,2]
[341226613,1730701833715,-500.0,0.00036076,2]
[341226614,1730701833724,-500.0,0.00036076,2]
[341226615,1730701833733,-500.0,0.00036076,2]
[341226616,1730701833743,-500.0,0.00036076,2]
[341226617,1730701833752,-500.0,0.00036076,2]
[341226618,1730701833761,-500.0,0.00036076,2]
[341226619,1730701833771,-500.0,0.00036076,2]
[341226620,1730701833781,-500.0,0.00036076,2]